bitfinex/quotes_SOLUSD_20250108
["timestamp","ask_amount","ask_price","bid_price","bid_amount"]
[1736359280103,0.64139805,193.66,193.56,49.9359826]
[1736359280303,0.64139805,193.66,193.54,49.9359826]
[1736359280608,20.0,193.63,193.53,49.9359826]
[1736359280912,0.64139805,193.62,193.52,49.9359826]
[1736359281108,0.64139805,193.65,193.56,49.9359826]
[1736359281330,0.64139805,193.65,193.46,8.39466069]
[1736359281331,0.64139805,193.65,193.53,49.9359826]
[1736359281616,20.0,193.63,193.53,49.9359826]
[1736359281811,0.64139805,193.62,193.52,49.9359826]
[1736359282013,0.64139805,193.62,193.53,49.9359826]
[1736359282382,0.64139805,193.62,193.46,8.39469859]
[1736359282383,0.64139805,193.62,193.51,49.9359826]
[1736359282604,0.64139805,193.62,193.52,49.9359826]
[1736359282826,0.64139805,193.62,193.51,49.9359826]
[1736359283525,0.64139805,193.62,193.52,49.9359826]
[1736359284018,0.64139805,193.62,193.51,49.9359826]
[1736359284318,0.64139805,193.62,193.49,49.9359826]
[1736359284491,0.64139805,193.62,193.4,54.9359826]
[1736359284492,20.0,193.61,193.47,49.9359826]
[1736359284692,0.64139805,193.6,193.47,49.9359826]
[1736359284998,0.64139805,193.6,193.48,49.9359826]
[1736359285203,0.64139805,193.6,193.5,49.9359826]
[1736359285387,0.64139805,193.6,193.48,49.9359826]
[1736359285714,0.64139805,193.61,193.47,49.9359826]
[1736359286013,0.64139805,193.61,193.5,49.9359826]
[1736359286216,0.64139805,193.61,193.52,49.9359826]
[1736359286393,0.64139805,193.61,193.51,49.9359826]
[1736359286600,2.36798817,193.61,193.5,49.9359826]
[1736359286919,0.64139805,193.6,193.51,49.9359826]
[1736359287089,0.64139805,193.62,193.51,49.9359826]
[1736359287487,20.64139805,193.62,193.48,49.9359826]
[1736359287812,20.64139805,193.62,193.46,49.9359826]
[1736359288188,20.64139805,193.62,193.47,49.9359826]
[1736359288584,20.0,193.58,193.43,49.9359826]
[1736359288801,20.0,193.54,193.42,49.9359826]
[1736359289010,0.64139805,193.53,193.43,49.9359826]
[1736359289616,0.64139805,193.53,193.41,49.9359826]
[1736359289818,0.64139805,193.53,193.43,49.9359826]
[1736359290815,0.64139805,193.53,193.42,49.9359826]
[1736359291025,0.64139805,193.53,193.44,49.9359826]
[1736359291614,0.64139805,193.53,193.42,49.9359826]
[1736359291808,0.64139805,193.53,193.41,49.9359826]
[1736359292196,0.64139805,193.53,193.33,28.32300067]
[1736359292197,20.64139805,193.53,193.38,49.9359826]
[1736359292703,20.64139805,193.53,193.4,49.9359826]
[1736359292704,0.64139805,193.53,193.4,49.9359826]
[1736359293011,20.64139805,193.53,193.4,49.9359826]
[1736359293311,20.64139805,193.53,193.41,49.9359826]
[1736359293508,0.64139805,193.53,193.41,49.9359826]
[1736359293722,2.95897489,193.53,193.45,49.9359826]
[1736359293891,0.64139805,193.53,193.43,49.9359826]
[1736359294412,0.64139805,193.53,193.41,49.9359826]
[1736359294600,0.64139805,193.55,193.41,49.9359826]
[1736359294803,20.0,193.54,193.39,49.9359826]
[1736359295020,20.64139805,193.53,193.39,49.9359826]
[1736359295317,20.64139805,193.53,193.39,30.85075325]
[1736359295692,20.64139805,193.53,193.36,30.85075325]
[1736359295693,20.0,193.49,193.36,30.85075325]
[1736359295888,20.0,193.49,193.33,29.84110067]
[1736359295889,20.0,193.44,193.33,28.32300067]
[1736359296109,0.64139805,193.43,193.33,28.32300067]
[1736359296914,20.0,193.35,193.33,28.32300067]
[1736359297116,0.64139805,193.37,193.33,28.32300067]
[1736359297317,0.64139805,193.42,193.33,28.32300067]
[1736359297627,20.0,193.4,193.33,28.32300067]
[1736359297916,0.64139805,193.39,193.33,28.32300067]
[1736359300306,8.43543009,193.43,193.33,28.32300067]
[1736359300528,0.64139805,193.42,193.34,50.17200398]
[1736359300714,0.64139805,193.42,193.33,78.49500465]
[1736359300928,6.5844,193.48,193.36,50.17200398]
[1736359301212,6.5844,193.48,193.42,50.17200398]
[1736359301415,6.5844,193.54,193.43,50.17200398]
[1736359301605,20.0,193.51,193.43,50.17200398]
[1736359302110,0.64139805,193.5,193.42,50.17200398]
[1736359302312,6.5844,193.54,193.39,50.17200398]
[1736359302313,23.776884,193.52,193.39,50.17200398]
[1736359302512,20.0,193.49,193.37,50.17200398]
[1736359302718,0.64139805,193.48,193.35,50.17200398]
[1736359303025,20.0,193.44,193.35,50.17200398]
[1736359303225,0.64139805,193.43,193.36,50.17200398]
[1736359303440,0.64139805,193.46,193.37,50.17200398]
[1736359303615,0.64139805,193.49,193.38,50.17200398]
[1736359304018,0.64139805,193.49,193.4,50.17200398]
[1736359304230,0.64139805,193.53,193.4,50.17200398]
[1736359304429,20.0,193.51,193.42,50.17200398]
[1736359304712,0.70902832,193.53,193.44,50.17200398]
[1736359305135,20.0,193.51,193.44,50.17200398]
[1736359305337,0.06763027,193.53,193.45,50.17200398]
[1736359305516,0.06763027,193.53,193.35,17.9299]
[1736359305517,0.64139805,193.53,193.44,50.17200398]
[1736359305915,20.0,193.51,193.45,50.17200398]
[1736359306119,6.5844,193.54,193.45,50.17200398]
[1736359306337,0.64139805,193.53,193.45,50.17200398]
[1736359306636,20.0,193.51,193.45,50.17200398]
[1736359307312,20.0,193.51,193.44,50.17200398]
[1736359307852,20.0,193.51,193.43,50.17200398]
[1736359308139,6.5844,193.54,193.46,50.17200398]
[1736359308310,6.6337,193.6,193.49,50.17200398]
[1736359308624,6.6337,193.6,193.52,50.17200398]
[1736359308825,6.6337,193.6,193.44,0.77501846]
[1736359308826,6.6337,193.6,193.53,50.17200398]
[1736359309030,6.6337,193.6,193.44,5.77501846]
[1736359309031,6.6337,193.65,193.54,50.17200398]
[1736359309245,0.64139805,193.64,193.54,50.17200398]
[1736359309433,6.6337,193.65,193.56,50.17200398]
[1736359309635,0.64139805,193.64,193.56,50.17200398]
[1736359310148,6.0002,193.71,193.61,50.17200398]
[1736359310350,0.64139805,193.7,193.61,50.17200398]
[1736359310516,0.64139805,193.7,193.6,50.17200398]
[1736359310724,0.64139805,193.7,193.59,50.17200398]
[1736359311034,0.64139805,193.7,193.58,50.17200398]
[1736359311239,0.64139805,193.7,193.59,50.17200398]
[1736359311545,20.0,193.68,193.58,50.17200398]
[1736359311767,0.64139805,193.67,193.57,50.17200398]
[1736359311962,0.64139805,193.67,193.58,50.17200398]
[1736359312261,20.0,193.68,193.59,50.17200398]
[1736359312618,0.64139805,193.7,193.58,50.17200398]
[1736359312922,0.64139805,193.7,193.59,50.17200398]
[1736359313125,0.64139805,193.7,193.56,0.77454866]
[1736359313126,23.776884,193.69,193.55,50.17200398]
[1736359313342,0.64139805,193.68,193.56,50.17200398]
[1736359313643,20.0,193.67,193.56,50.17200398]
[1736359313848,0.64139805,193.66,193.57,50.17200398]
[1736359314339,20.0,193.67,193.55,50.17200398]
[1736359314546,0.64139805,193.66,193.52,50.17200398]
[1736359315040,20.0,193.62,193.5,50.17200398]
[1736359315220,20.0,193.67,193.48,8.91674687]
[1736359315221,0.64139805,193.61,193.52,50.17200398]
[1736359315422,0.64139805,193.66,193.55,50.17200398]
[1736359316054,0.64139805,193.66,193.56,50.17200398]
[1736359316350,0.64139805,193.67,193.56,50.17200398]
[1736359316526,0.64139805,193.67,193.55,50.17200398]
[1736359316724,20.0,193.63,193.53,50.17200398]
[1736359316929,0.64139805,193.62,193.51,50.17200398]
[1736359317235,0.64139805,193.62,193.5,50.17200398]
[1736359317749,0.64139805,193.62,193.49,50.17200398]
[1736359319243,20.0,193.58,193.49,50.17200398]
[1736359320258,6.4934,193.61,193.49,50.17200398]
[1736359320259,6.4934,193.61,193.51,50.17200398]
[1736359320464,0.64139805,193.6,193.5,50.17200398]
[1736359320769,0.64139805,193.6,193.49,50.17200398]
[1736359320971,6.4934,193.61,193.52,50.17200398]
[1736359321126,6.4934,193.61,193.53,50.17200398]
[1736359321864,0.64139805,193.65,193.55,50.17200398]
[1736359322047,1.72269805,193.66,193.56,50.17200398]
[1736359322237,6.0062,193.67,193.52,23.776884]
[1736359322238,6.0062,193.67,193.59,50.17200398]
[1736359322433,2.24868764,193.71,193.61,50.17200398]
[1736359322636,0.64139805,193.71,193.61,50.17200398]
[1736359323160,0.64139805,193.71,193.6,50.17200398]
[1736359323455,0.64139805,193.71,193.57,0.77449794]
[1736359323456,23.776884,193.7,193.57,50.17200398]
[1736359323655,0.64139805,193.69,193.54,50.17200398]
[1736359323830,20.0,193.69,193.57,50.17200398]
[1736359324032,0.64139805,193.68,193.58,50.17200398]
[1736359325978,8.71433135,193.88,193.81,50.17200398]
[1736359326169,8.71433135,193.88,193.73,5.0]
[1736359326170,8.0729333,193.88,193.85,50.17200398]
[1736359326469,8.0729333,193.88,193.87,50.17200398]
[1736359326798,8.0729333,193.94,193.87,50.17200398]
[1736359327147,8.0729333,193.94,193.93,50.17200398]
[1736359327860,10.0,193.97,193.93,50.17200398]
[1736359328066,10.0,193.97,193.91,0.77318673]
[1736359328269,10.0,193.97,193.95,50.17200398]
[1736359328575,10.0,193.97,193.91,50.17200398]
[1736359328775,10.0,193.97,193.9,50.17200398]
[1736359328981,10.0,193.97,193.88,50.17200398]
[1736359329153,10.0,193.97,193.87,50.17200398]
[1736359329349,10.0,193.97,193.86,50.17200398]
[1736359329578,10.0,193.97,193.87,50.17200398]
[1736359329978,0.64139805,193.96,193.87,50.17200398]
[1736359330154,10.0,193.97,193.88,50.17200398]
[1736359330361,10.0,193.97,193.92,50.17200398]
[1736359331159,10.0,193.97,193.94,50.17200398]
[1736359331353,10.0,193.97,193.96,50.17200398]
[1736359331555,10.0,193.97,193.96,73.94888798]
[1736359331777,10.0,193.97,193.95,50.17200398]
[1736359331979,10.0,193.97,193.94,50.17200398]
[1736359332165,10.0,193.97,193.91,0.77294378]
[1736359332166,10.0,193.97,193.92,50.17200398]
[1736359332374,10.0,193.97,193.94,50.17200398]
[1736359333186,10.0,193.97,193.92,50.17200398]
[1736359333375,10.0,193.97,193.93,50.17200398]
[1736359333689,10.0,193.97,193.9,50.17200398]
[1736359333870,10.0,193.97,193.87,50.17200398]
[1736359334265,10.0,193.97,193.88,50.17200398]
[1736359334476,10.0,193.97,193.91,50.17200398]
[1736359334794,10.0,193.97,193.92,50.17200398]
[1736359334975,10.0,193.97,193.93,50.17200398]
[1736359335177,10.0,193.97,193.92,50.17200398]
[1736359335493,10.0,193.97,193.89,50.17200398]
[1736359335687,10.0,193.97,193.88,50.17200398]
[1736359335877,10.0,193.97,193.9,50.17200398]
[1736359336287,10.0,193.97,193.83,5.77326828]
[1736359336288,10.0,193.97,193.88,50.17200398]
[1736359336578,20.0,193.94,193.84,50.17200398]
[1736359336775,20.0,193.94,193.85,50.17200398]
[1736359336970,10.0,193.97,193.88,50.17200398]
[1736359337286,10.0,193.97,193.87,50.17200398]
[1736359337593,20.0,193.94,193.83,50.17200398]
[1736359337794,20.0,193.94,193.87,50.17200398]
[1736359337983,20.0,193.94,193.85,50.17200398]
[1736359338184,20.0,193.94,193.84,50.17200398]
[1736359338795,0.64139805,193.93,193.83,50.17200398]
[1736359339097,0.64139805,193.93,193.78,2.30525255]
[1736359339098,20.64139805,193.94,193.82,50.17200398]
[1736359339308,20.64139805,193.92,193.78,50.17200398]
[1736359339597,20.64139805,193.92,193.75,50.17200398]
[1736359339769,20.0,193.9,193.75,50.17200398]
[1736359339970,0.64139805,193.89,193.75,50.17200398]
[1736359340164,0.64139805,193.89,193.79,50.17200398]
[1736359340387,0.64139805,193.94,193.8,50.17200398]
[1736359340607,0.64139805,193.94,193.77,50.17200398]
[1736359340805,20.0,193.92,193.76,50.17200398]
[1736359340990,8.44555915,193.95,193.78,50.17200398]
[1736359341322,8.44555915,193.95,193.72,10.0]
[1736359341323,10.0,193.97,193.86,5.0]
[1736359341504,10.0,193.97,193.92,23.776884]
[1736359341822,10.0,193.97,193.96,28.776884]
[1736359342020,10.0,193.97,193.96,24.54963554]
[1736359342190,8.0729333,194.2,193.96,61.77275154]
[1736359342391,0.64139805,194.19,194.05,50.17200398]
[1736359342590,28.776884,194.2,194.02,50.17200398]
[1736359342796,5.0,194.17,194.0,50.17200398]
[1736359343011,5.0,194.17,193.96,0.77283766]
[1736359343012,20.0,194.15,193.99,50.17200398]
[1736359343197,0.64139805,194.14,194.0,50.17200398]
[1736359343394,0.64139805,194.14,194.02,50.17200398]
[1736359343610,28.776884,194.19,194.01,50.17200398]
[1736359343808,6.0113,194.25,194.0,50.17200398]
[1736359343809,35.0,194.17,194.0,50.17200398]
[1736359344011,20.0,194.14,193.99,50.17200398]
[1736359344216,0.64139805,194.13,193.98,50.17200398]
[1736359344407,20.0,194.09,193.97,50.17200398]
[1736359344610,0.64139805,194.08,193.96,50.17200398]
[1736359345118,0.64139805,194.11,193.99,50.17200398]
[1736359345317,0.64139805,194.11,193.98,50.17200398]
[1736359345519,20.0,194.09,193.94,50.17200398]
[1736359345722,0.64139805,194.08,193.95,50.17200398]
[1736359346533,0.64139805,194.08,193.97,50.17200398]
[1736359346693,0.64139805,194.08,193.9,50.17200398]
[1736359346694,8.19707236,194.12,193.98,0.7730867]
[1736359347027,20.0,194.09,193.94,50.17200398]
[1736359347211,0.64139805,194.08,193.93,50.17200398]
[1736359347414,0.64139805,194.08,193.94,50.17200398]
[1736359347592,0.64139805,194.08,193.93,50.17200398]
[1736359347797,0.64139805,194.08,193.96,50.17200398]
[1736359348302,0.64139805,194.08,193.94,50.17200398]
[1736359348635,0.64139805,194.08,193.95,50.17200398]
[1736359348933,20.0,194.09,193.97,50.17200398]
[1736359349303,6.0068,194.12,194.01,50.17200398]
[1736359349631,0.64139805,194.11,193.99,50.17200398]
[1736359349805,0.64139805,194.11,194.0,50.17200398]
[1736359350125,0.06763027,194.17,194.0,50.17200398]
[1736359350126,2.88086679,194.19,194.07,50.17200398]
[1736359350344,0.64139805,194.26,194.09,50.17200398]
[1736359351135,25.64139805,194.26,194.09,50.17200398]
[1736359351322,20.64139805,194.26,194.09,50.17200398]
[1736359351518,7.5725,194.25,194.07,50.17200398]
[1736359351731,0.64139805,194.24,194.11,50.17200398]
[1736359352142,0.64139805,194.3,194.16,50.17200398]
[1736359352432,6.6572,194.29,194.18,50.17200398]
[1736359352738,6.6572,194.29,194.12,0.77243953]
[1736359352739,20.0,194.26,194.14,50.17200398]
[1736359352897,0.64139805,194.25,194.15,50.17200398]
[1736359353302,0.64139805,194.25,194.14,50.17200398]
[1736359353514,0.64139805,194.25,194.12,50.17200398]
[1736359353734,0.64139805,194.25,194.11,50.17200398]
[1736359354032,0.64139805,194.25,194.06,0.7724254]
[1736359354033,0.64139805,194.25,194.12,50.17200398]
[1736359354214,20.0,194.26,194.17,50.17200398]
[1736359354403,20.0,194.26,194.16,50.17200398]
[1736359354613,0.64139805,194.25,194.13,50.17200398]
[1736359354919,0.64139805,194.25,194.12,0.77238776]
[1736359354920,0.64139805,194.25,194.12,50.17200398]
[1736359355438,20.64139805,194.25,194.11,50.17200398]
[1736359355809,0.64139805,194.25,194.12,50.17200398]
[1736359356007,20.0,194.26,194.14,50.17200398]
[1736359356220,20.0,194.26,194.15,50.17200398]
[1736359356419,0.64139805,194.25,194.11,50.94432951]
[1736359356731,0.64139805,194.25,194.13,50.17200398]
[1736359356939,0.64139805,194.25,194.14,50.17200398]
[1736359357230,0.64139805,194.25,194.12,50.17200398]
[1736359357443,0.64139805,194.25,194.11,50.17200398]
[1736359357933,20.0,194.24,194.07,50.17200398]
[1736359358129,0.64139805,194.23,194.08,50.17200398]
[1736359358339,0.64139805,194.23,194.04,50.17200398]
[1736359358509,1.546,194.21,194.05,50.17200398]
[1736359358715,0.64139805,194.2,194.07,50.17200398]
[1736359358914,2.25015435,194.26,194.16,51.71910398]
[1736359359237,2.90309051,194.34,194.17,50.17200398]
[1736359359440,2.90309051,194.34,194.2,50.17200398]
[1736359359745,2.90309051,194.34,194.21,50.17200398]
[1736359360107,2.90309051,194.34,194.2,50.17200398]
[1736359360331,0.64139805,194.34,194.23,50.17200398]
[1736359360645,20.0,194.34,194.23,50.17200398]
[1736359360844,0.64139805,194.33,194.22,50.17200398]
[1736359361136,20.0,194.34,194.22,50.17200398]
[1736359361346,0.64139805,194.33,194.22,50.17200398]
[1736359361645,0.64139805,194.36,194.23,50.17200398]
[1736359361844,0.64139805,194.36,194.24,50.17200398]
[1736359362030,0.64139805,194.36,194.21,50.17200398]
[1736359362221,0.64139805,194.36,194.22,50.17200398]
[1736359362431,0.64139805,194.36,194.24,50.17200398]
[1736359362626,20.0,194.34,194.23,50.17200398]
[1736359362824,0.64139805,194.33,194.22,50.17200398]
[1736359363015,0.64139805,194.33,194.23,50.17200398]
[1736359363211,0.64139805,194.33,194.18,23.776884]
[1736359363416,0.64139805,194.33,194.22,50.17200398]
[1736359363655,0.64139805,194.33,194.18,50.17200398]
[1736359363850,0.64139805,194.33,194.2,50.17200398]
[1736359364022,0.64139805,194.33,194.22,50.17200398]
[1736359364432,0.64139805,194.33,194.21,50.17200398]
[1736359364649,0.64139805,194.33,194.2,50.17200398]
[1736359365149,0.64139805,194.33,194.19,50.17200398]
[1736359365857,20.0,194.32,194.15,50.17200398]
[1736359366139,20.0,194.27,194.23,500.0]
[1736359366340,0.64139805,194.26,194.23,500.0]
[1736359366546,20.0,194.27,194.23,500.0]
[1736359366744,0.64139805,194.26,194.23,500.0]
[1736359367221,0.64139805,194.26,194.23,485.00000001]
[1736359367430,0.64139805,194.26,194.23,476.58990001]
[1736359367618,20.0,194.25,194.23,436.26766928]
[1736359367934,0.64139805,194.24,194.23,436.26766928]
[1736359368142,0.64139805,194.26,194.23,436.26766928]
[1736359368336,20.0,194.27,194.23,436.26766928]
[1736359368941,0.64139805,194.26,194.23,436.26766928]
[1736359370151,0.64139805,194.26,194.23,402.39766928]
[1736359370314,20.64139805,194.26,194.23,365.79766928]
[1736359370926,0.64139805,194.26,194.23,365.79766928]
[1736359371828,20.0,194.27,194.23,365.79766928]
[1736359372238,0.64139805,194.26,194.23,365.79766928]
[1736359372746,20.0,194.27,194.23,365.79766928]
[1736359374169,0.64139805,194.26,194.23,365.79766928]
[1736359374657,20.0,194.27,194.23,365.79766928]
[1736359375750,0.64139805,194.26,194.23,365.79766928]
[1736359376144,20.0,194.27,194.23,365.79766928]
[1736359376341,20.64139805,194.27,194.23,365.79766928]
[1736359376540,2.14797384,194.29,194.23,365.79766928]
[1736359376541,2.78937189,194.29,194.23,365.79766928]
[1736359376880,0.64139805,194.29,194.23,365.79766928]
[1736359377070,8.3628706,194.3,194.23,365.79766928]
[1736359377670,2.2413706,194.3,194.23,365.79766928]
[1736359377971,0.64139805,194.34,194.23,365.79766928]
[1736359378189,20.0,194.33,194.23,396.39590271]
[1736359378486,0.64139805,194.32,194.24,30.59823343]
[1736359378650,0.64139805,194.35,194.23,396.39590271]
[1736359378858,20.0,194.33,194.23,396.39590271]
[1736359379179,0.64139805,194.32,194.23,365.79766928]
[1736359379477,0.64139805,194.35,194.23,365.79766928]
[1736359379671,20.0,194.33,194.23,365.79766928]
[1736359379875,0.64139805,194.32,194.23,365.79766928]
[1736359380878,0.64139805,194.35,194.23,396.39590271]
[1736359381384,0.64139805,194.35,194.23,365.79766928]
[1736359381557,20.0,194.33,194.23,365.79766928]
[1736359381760,0.64139805,194.32,194.23,365.79766928]
[1736359383960,20.0,194.31,194.23,365.79766928]
[1736359384286,0.64139805,194.3,194.23,365.79766928]
[1736359384455,0.64139805,194.35,194.23,365.79766928]
[1736359384660,20.0,194.33,194.23,365.79766928]
[1736359384957,0.64139805,194.32,194.23,365.79766928]
[1736359385569,20.64139805,194.32,194.23,365.79766928]
[1736359385772,20.0,194.31,194.23,365.79766928]
[1736359385985,20.64139805,194.3,194.23,365.79766928]
[1736359386388,0.64139805,194.3,194.23,365.79766928]
[1736359386685,20.0,194.3,194.23,365.79766928]
[1736359386889,0.64139805,194.29,194.23,365.79766928]
[1736359387586,0.64139805,194.33,194.23,365.79766928]
[1736359388288,20.0,194.31,194.23,365.79766928]
[1736359388472,0.64139805,194.3,194.23,365.79766928]
[1736359388671,20.0,194.29,194.23,365.79766928]
[1736359388879,0.64139805,194.28,194.23,365.79766928]
[1736359389086,20.0,194.29,194.23,365.79766928]
[1736359389266,0.64139805,194.33,194.23,365.79766928]
[1736359389462,0.64139805,194.35,194.23,365.79766928]
[1736359389672,0.64139805,194.35,194.23,396.39590271]
[1736359389868,0.64139805,194.35,194.24,30.59823343]
[1736359390168,0.64139805,194.35,194.23,365.79766928]
[1736359390169,20.0,194.32,194.23,365.79766928]
[1736359390363,20.0,194.28,194.23,302.58887991]
[1736359390565,0.64139805,194.27,194.23,280.29808393]
[1736359391096,0.64139805,194.29,194.23,280.29808393]
[1736359391392,0.64139805,194.29,194.23,236.91108393]
[1736359391592,0.64139805,194.29,194.23,232.34508393]
[1736359391770,20.0,194.3,194.23,232.34508393]
[1736359391973,0.64139805,194.29,194.23,232.34508393]
[1736359392498,20.0,194.26,194.23,232.34508393]
[1736359392706,0.64139805,194.25,194.23,209.09508393]
[1736359392878,0.64139805,194.28,194.23,209.09508393]
[1736359393063,0.70902832,194.33,194.23,209.09508393]
[1736359393272,0.64139805,194.33,194.23,209.09508393]
[1736359393602,20.64139805,194.33,194.23,209.09508393]
[1736359394375,2.84515335,194.33,194.23,209.09508393]
[1736359395265,20.64139805,194.33,194.23,209.09508393]
[1736359396206,20.0,194.32,194.23,209.09508393]
[1736359396489,0.64139805,194.31,194.23,209.09508393]
[1736359396691,24.41828205,194.31,194.23,209.09508393]
[1736359396869,20.0,194.28,194.23,209.09508393]
[1736359397073,0.64139805,194.27,194.23,209.09508393]
[1736359397271,20.0,194.32,194.23,209.09508393]
[1736359397570,0.64139805,194.31,194.23,209.09508393]
[1736359398877,0.64139805,194.32,194.23,239.69331736]
[1736359399077,0.70902832,194.37,194.23,239.69331736]
[1736359399277,0.70902832,194.37,194.23,209.09508393]
[1736359399481,22.92915097,194.37,194.23,209.09508393]
[1736359399773,20.70902832,194.37,194.23,209.09508393]
[1736359399973,0.70902832,194.37,194.23,209.09508393]
[1736359400178,0.06763027,194.37,194.23,209.09508393]
[1736359400391,0.06763027,194.37,194.23,239.69331736]
[1736359401007,0.64139805,194.37,194.27,8.0426]
[1736359401198,0.64139805,194.37,194.27,38.64083343]
[1736359401504,0.64139805,194.37,194.27,8.0426]
[1736359401877,0.64139805,194.39,194.27,8.0426]
[1736359402274,0.64139805,194.39,194.28,30.59823343]
[1736359402486,0.64139805,194.42,194.34,30.59823343]
[1736359402696,8.71433135,194.44,194.36,30.59823343]
[1736359402900,8.71433135,194.44,194.35,30.59823343]
[1736359403106,8.0729333,194.44,194.37,30.59823343]
[1736359403403,8.71433135,194.44,194.35,30.59823343]
[1736359403708,8.0729333,194.44,194.34,30.59823343]
[1736359403878,2.81722763,194.46,194.34,30.59823343]
[1736359404201,20.0,194.45,194.35,30.59823343]
[1736359404423,0.64139805,194.44,194.34,30.59823343]
[1736359404782,0.64139805,194.44,194.33,30.59823343]
[1736359404987,20.64139805,194.45,194.35,30.59823343]
[1736359405595,2.90373908,194.5,194.37,30.59823343]
[1736359406209,20.0,194.49,194.37,30.59823343]
[1736359406404,0.64139805,194.48,194.39,30.59823343]
[1736359406702,0.06763027,194.54,194.43,30.59823343]
[1736359406901,0.06763027,194.54,194.44,30.59823343]
[1736359407104,0.64139805,194.56,194.45,30.59823343]
[1736359407412,0.64139805,194.56,194.47,30.59823343]
[1736359407587,0.64139805,194.56,194.52,30.59823343]
[1736359407778,8.0729333,194.57,194.53,30.59823343]
[1736359408100,8.0729333,194.62,194.52,30.59823343]
[1736359408309,8.0729333,194.62,194.58,30.59823343]
[1736359408493,8.0729333,194.62,194.6,30.59823343]
[1736359408813,2.86298549,194.69,194.57,30.59823343]
[1736359408985,2.86298549,194.69,194.58,30.59823343]
[1736359409185,20.0,194.68,194.58,30.59823343]
[1736359409390,20.0,194.68,194.56,30.59823343]
[1736359409391,0.64139805,194.68,194.56,30.59823343]
[1736359409594,20.0,194.66,194.51,36.82583343]
[1736359409798,20.0,194.61,194.5,1.647]
[1736359410001,0.64139805,194.6,194.5,1.647]
[1736359410193,0.64139805,194.6,194.46,6.0652]
[1736359410194,20.64139805,194.6,194.46,6.0652]
[1736359410405,20.0,194.59,194.46,6.0652]
[1736359410592,20.0,194.55,194.45,32.16673343]
[1736359410914,0.64139805,194.54,194.45,1.5685]
[1736359411114,0.64139805,194.54,194.45,32.16673343]
[1736359411320,0.64139805,194.54,194.45,1.5685]
[1736359411488,0.64139805,194.54,194.42,49.59076887]
[1736359411887,0.64139805,194.54,194.41,55.68056887]
[1736359412212,2.76950959,194.54,194.42,49.59076887]
[1736359412420,20.0,194.53,194.4,1.6545]
[1736359412711,0.64139805,194.52,194.4,51.24526887]
[1736359412895,0.64139805,194.52,194.4,1.6545]
[1736359413218,20.0,194.51,194.42,49.59076887]
[1736359413392,0.64139805,194.5,194.42,49.59076887]
[1736359413591,0.64139805,194.5,194.43,49.59076887]
[1736359413808,20.0,194.53,194.41,49.59076887]
[1736359414004,0.64139805,194.52,194.4,51.24526887]
[1736359414205,0.64139805,194.52,194.35,7.7457]
[1736359414206,43.776884,194.51,194.35,7.7457]
[1736359414510,20.0,194.46,194.35,7.7457]
[1736359414703,0.64139805,194.45,194.32,49.59076887]
[1736359414903,0.64139805,194.45,194.33,49.59076887]
[1736359415313,0.64139805,194.45,194.34,49.59076887]
[1736359415488,0.64139805,194.49,194.39,49.59076887]
[1736359415694,0.64139805,194.49,194.42,49.59076887]
[1736359415895,2.17142874,194.53,194.4,49.59076887]
[1736359416098,20.64139805,194.52,194.38,49.59076887]
[1736359416596,20.0,194.47,194.31,1.6341]
[1736359416808,20.0,194.42,194.31,1.6341]
[1736359417013,0.64139805,194.41,194.31,1.6341]
[1736359418407,0.64139805,194.41,194.31,51.22486887]
[1736359418605,0.64139805,194.43,194.34,49.59076887]
[1736359418821,0.64139805,194.49,194.34,49.59076887]
[1736359419026,0.64139805,194.49,194.38,49.59076887]
[1736359419236,0.64139805,194.49,194.37,49.59076887]
[1736359419397,0.64139805,194.49,194.31,2.405699]
[1736359419398,20.0,194.47,194.36,49.59076887]
[1736359419727,43.776884,194.45,194.31,1.6341]
[1736359419927,0.64139805,194.44,194.31,1.6341]
[1736359420226,20.0,194.4,194.27,49.59076887]
[1736359420534,0.64139805,194.39,194.3,49.59076887]
[1736359420705,0.64139805,194.44,194.31,49.59076887]
[1736359420902,0.64139805,194.44,194.3,49.59076887]
[1736359421102,20.0,194.43,194.29,49.59076887]
[1736359421303,0.64139805,194.42,194.26,49.59076887]
[1736359421505,0.64139805,194.42,194.25,51.19036887]
[1736359421713,20.0,194.41,194.25,1.5996]
[1736359422030,20.0,194.36,194.25,1.5996]
[1736359422200,0.64139805,194.35,194.25,1.5996]
[1736359422616,0.64139805,194.38,194.26,49.59076887]
[1736359422826,0.64139805,194.38,194.28,49.59076887]
[1736359423124,0.64139805,194.38,194.27,49.59076887]
[1736359423339,0.64139805,194.38,194.28,49.59076887]
[1736359423701,6.5172,194.39,194.29,49.59076887]